fUSD/lending_fUSD_20250610
["ID","MTS","AMOUNT","RATE_DAILY","PERIOD"]
[365230178,1749558635140,-490.0,0.00016602,2]
[365230180,1749558635149,-490.0,0.00016602,2]
[365230182,1749558635159,-490.0,0.00016602,2]
[365230184,1749558635168,-490.0,0.00016602,2]
[365230186,1749558635177,-459.0,0.00016602,2]
[365230188,1749558635187,-490.0,0.00016602,2]
[365230190,1749558635196,-490.0,0.00016602,2]
[365230192,1749558635206,-470.0,0.00016602,2]
[365230194,1749558635216,-490.0,0.00016602,2]
[365230196,1749558635226,-490.0,0.00016602,2]
[365230198,1749558635236,-490.0,0.00016602,2]
[365230201,1749558635246,-490.21,0.00016602,2]
[365230203,1749558635255,-490.0,0.00016602,2]
[365230205,1749558635265,-402.62,0.00016602,2]
[365230207,1749558635274,-470.0,0.00016602,2]
[365230209,1749558635284,-1157.58,0.00016602,2]
[365230211,1749558635294,-470.0,0.00016602,2]
[365230213,1749558635303,-490.0,0.00016602,2]
[365230215,1749558635312,-490.0,0.00016602,2]
[365230217,1749558635323,-490.0,0.00016602,2]
[365230219,1749558635333,-490.0,0.00016602,2]
[365230221,1749558635342,-490.0,0.00016602,2]
[365230223,1749558635352,-490.0,0.00016602,2]
[365230244,1749558635516,-182.67,0.00016602,2]
[365230247,1749558635554,-1150.32,0.00016602,2]
[365230249,1749558635563,-490.0,0.00016602,2]
[365230251,1749558635573,-507.31,0.00016602,2]
[365230253,1749558635582,-490.0,0.00016602,2]
[365230255,1749558635591,-300.0,0.00016602,2]
[365230257,1749558635601,-542.68463089,0.00016602,2]
[365230259,1749558635610,-490.0,0.00016602,2]
[365230261,1749558635619,-490.0,0.00016602,2]
[365230263,1749558635629,-490.0,0.00016602,2]
[365230265,1749558635638,-526.34,0.00016602,2]
[365230267,1749558635647,-490.0,0.00016602,2]
[365230269,1749558635657,-490.0,0.00016602,2]
[365230271,1749558635666,-490.0,0.00016602,2]
[365230273,1749558635675,-556.65,0.00016602,2]
[365230275,1749558635684,-470.0,0.00016602,2]
[365230277,1749558635693,-177.91710811,0.00016602,2]
[365230279,1749558635703,-470.0,0.00016602,2]
[365230281,1749558635712,-490.0,0.00016602,2]
[365230283,1749558635722,-192.52,0.00016602,2]
[365230285,1749558635731,-470.0,0.00016602,2]
[365230287,1749558635741,-151.0,0.00016602,2]
[365230289,1749558635750,-470.0,0.00016602,2]
[365230291,1749558635759,-490.0,0.00016602,2]
[365230293,1749558635769,-470.0,0.00016602,2]
[365230295,1749558635778,-270.04656332,0.00016602,2]
[365230297,1749558635788,-2282.25,0.00016602,2]
[365230299,1749558635798,-490.0,0.00016602,2]
[365230301,1749558635807,-151.0,0.00016602,2]
[365230303,1749558635817,-493.36,0.00016602,2]
[365230305,1749558635826,-490.0,0.00016602,2]
[365230307,1749558635835,-194.473984,0.00016602,2]
[365230309,1749558635845,-151.0,0.00016602,2]
[365230311,1749558635855,-490.0,0.00016602,2]
[365230313,1749558635864,-490.0,0.00016602,2]
[365230315,1749558635873,-272.44,0.00016602,2]
[365230317,1749558635886,-151.0,0.00016602,2]
[365230319,1749558635895,-490.0,0.00016602,2]
[365230321,1749558635904,-151.0,0.00016602,2]
[365230323,1749558635915,-490.0,0.00016602,2]
[365230325,1749558635924,-470.0,0.00016602,2]
[365230327,1749558635934,-490.0,0.00016602,2]
[365230329,1749558635944,-151.0,0.00016602,2]
[365230331,1749558635953,-470.0,0.00016602,2]
[365230333,1749558635964,-151.0,0.00016602,2]
[365230335,1749558635974,-490.0,0.00016602,2]
[365230337,1749558635983,-470.0,0.00016602,2]
[365230339,1749558635993,-490.0,0.00016602,2]
[365230340,1749558636002,-151.0,0.00016602,2]
[365230341,1749558636011,-151.0,0.00016602,2]
[365230342,1749558636021,-362.0,0.00016739,3]
[365230343,1749558636031,-490.0,0.00016767,2]
[365230344,1749558636040,-490.0,0.00016767,2]
[365230345,1749558636049,-1093.59,0.00016767,2]
[365230346,1749558636059,-581.69,0.00016767,2]
[365230347,1749558636068,-490.0,0.00016767,2]
[365230348,1749558636077,-490.0,0.00016767,2]
[365230349,1749558636086,-490.0,0.00016767,2]
[365230351,1749558636096,-490.0,0.00016767,2]
[365230353,1749558636106,-490.0,0.00016767,2]
[365230355,1749558636115,-202.17,0.00016767,2]
[365230357,1749558636125,-490.0,0.00016767,2]
[365230359,1749558636135,-176.52,0.00016767,2]
[365230361,1749558636145,-1000.0,0.00016767,2]
[365230363,1749558636155,-490.0,0.00016767,2]
[365230365,1749558636165,-490.0,0.00016767,2]
[365230367,1749558636175,-490.0,0.00016767,2]
[365230369,1749558636185,-490.0,0.00016767,2]
[365230371,1749558636195,-499.66,0.00016767,2]
[365230373,1749558636204,-490.0,0.00016767,2]
[365230375,1749558636214,-490.0,0.00016767,2]
[365230377,1749558636224,-490.0,0.00016767,2]
[365230379,1749558636234,-601.95,0.00016767,2]
[365230381,1749558636243,-490.0,0.00016767,2]
[365230383,1749558636253,-490.0,0.00016767,2]
[365230385,1749558636263,-490.0,0.00016767,2]
[365230387,1749558636274,-460.0,0.00016767,2]
[365230389,1749558636284,-1157.58,0.00016767,2]
[365230391,1749558636294,-490.0,0.00016767,2]
[365230394,1749558636305,-490.0,0.00016767,2]
[365230396,1749558636316,-191.15,0.00016767,2]
[365230398,1749558636326,-490.0,0.00016767,2]
[365230400,1749558636336,-490.0,0.00016767,2]
[365230402,1749558636345,-490.0,0.00016767,2]
[365230404,1749558636355,-460.0,0.00016767,2]
[365230406,1749558636364,-1150.32,0.00016767,2]
[365230408,1749558636374,-490.0,0.00016767,2]
[365230410,1749558636384,-490.0,0.00016767,2]
[365230412,1749558636394,-490.0,0.00016767,2]
[365230414,1749558636403,-490.0,0.00016767,2]
[365230416,1749558636413,-490.0,0.00016767,2]
[365230418,1749558636424,-430.67,0.00016767,2]
[365230420,1749558636433,-490.0,0.00016767,2]
[365230422,1749558636442,-151.0,0.00016767,2]
[365230424,1749558636452,-151.0,0.00016767,2]
[365230425,1749558636462,-151.0,0.00016767,2]
[365230427,1749558636472,-151.0,0.00016767,2]
[365230429,1749558636482,-151.0,0.00016767,2]
[365230431,1749558636492,-151.0,0.00016767,2]
[365230433,1749558636501,-151.0,0.00016767,2]
[365230435,1749558636510,-151.0,0.00016767,2]
[365230437,1749558636521,-151.0,0.00016767,2]
[365230439,1749558636530,-151.237665,0.00016767,2]
[365230441,1749558636540,-151.0,0.00016767,2]
[365230443,1749558636549,-151.0,0.00016767,2]
[365230445,1749558636560,-173.05703,0.00016767,2]
[365230447,1749558636570,-151.0,0.00016767,2]
[365230449,1749558636580,-173.05703,0.00016767,2]
[365230451,1749558636590,-172.597876,0.00016767,2]
[365230453,1749558636600,-151.0,0.00016767,2]
[365230455,1749558636610,-151.0,0.00016767,2]
[365230457,1749558636620,-543.45654,0.00016767,2]
[365230459,1749558636629,-543.45654,0.00016767,2]
[365230461,1749558636639,-151.0,0.00016767,2]
[365230463,1749558636648,-151.0,0.00016767,2]
[365230465,1749558636659,-221.37175,0.00016767,2]
[365230468,1749558636670,-221.37175,0.00016767,2]
[365230469,1749558636679,-6947.255451,0.00016767,2]
[365230471,1749558636689,-6947.255451,0.00016767,2]
[365230473,1749558636698,-151.0,0.00016767,2]
[365230476,1749558636708,-151.0,0.00016767,2]
[365230478,1749558636718,-151.0,0.00016767,2]
[365230480,1749558636727,-372.46714215,0.00016767,2]
[365230482,1749558636736,-231.780223,0.00016767,2]
[365230484,1749558636746,-151.0,0.00016767,2]
[365230485,1749558636755,-231.780223,0.00016767,2]
[365230487,1749558636765,-490.0,0.00016767,2]
[365230489,1749558636776,-151.0,0.00016767,2]
[365230491,1749558636786,-2282.25,0.00016767,2]
[365230493,1749558636795,-490.0,0.00016767,2]
[365230495,1749558636805,-151.0,0.00016767,2]
[365230497,1749558636815,-265.310271,0.00016767,2]
[365230499,1749558636824,-490.0,0.00016767,2]
[365230501,1749558636834,-151.0,0.00016767,2]
[365230503,1749558636843,-460.0,0.00016767,2]
[365230505,1749558636853,-460.0,0.00016767,2]
[365230508,1749558636862,-151.0,0.00016767,2]
[365230509,1749558636874,-490.0,0.00016767,2]
[365230512,1749558636888,-490.0,0.00016767,2]
[365230514,1749558636897,-151.0,0.00016767,2]
[365230516,1749558636907,-425.27,0.00016767,2]
[365230518,1749558636917,-151.0,0.00016767,2]
[365230520,1749558636927,-490.0,0.00016767,2]
[365230521,1749558636936,-490.0,0.00016767,2]
[365230523,1749558636946,-170.232144,0.00016767,2]
[365230525,1749558636957,-151.0,0.00016767,2]
[365230527,1749558636967,-250.0,0.00016879,2]
[365230530,1749558636977,-500.0,0.00016895,2]
[365230532,1749558636987,-450.0,0.00016931,2]
[365230534,1749558636997,-1093.59,0.00016931,2]
[365230536,1749558637007,-490.0,0.00016931,2]
[365230538,1749558637018,-490.0,0.00016931,2]
[365230540,1749558637027,-450.0,0.00016931,2]
[365230542,1749558637037,-450.0,0.00016931,2]
[365230544,1749558637046,-490.0,0.00016931,2]
[365230546,1749558637057,-231.56040594,0.00016931,2]
[365230548,1749558637067,-490.0,0.00016931,2]
[365230550,1749558637077,-1000.0,0.00016931,2]
[365230552,1749558637086,-490.0,0.00016931,2]
[365230554,1749558637096,-490.0,0.00016931,2]
[365230556,1749558637106,-558.73,0.00016931,2]
[365230558,1749558637116,-450.0,0.00016931,2]
[365230560,1749558637126,-490.0,0.00016931,2]
[365230562,1749558637136,-440.0,0.00016931,2]
[365230564,1749558637146,-431.05035753,0.00016931,2]
[365230566,1749558637156,-343.47726702,0.00016931,2]
[365230568,1749558637167,-490.0,0.00016931,2]
[365230570,1749558637178,-568.3,0.00016931,2]
[365230572,1749558637188,-1157.58,0.00016931,2]
[365230574,1749558637198,-490.0,0.00016931,2]
[365230576,1749558637208,-490.0,0.00016931,2]
[365230578,1749558637219,-490.0,0.00016931,2]
[365230580,1749558637229,-490.0,0.00016931,2]
[365230582,1749558637239,-490.0,0.00016931,2]
[365230584,1749558637250,-1150.32,0.00016931,2]
[365230586,1749558637260,-490.0,0.00016931,2]
[365230588,1749558637272,-490.0,0.00016931,2]
[365230590,1749558637282,-450.0,0.00016931,2]
[365230592,1749558637292,-490.0,0.00016931,2]
[365230594,1749558637303,-490.0,0.00016931,2]
[365230596,1749558637315,-2282.25,0.00016931,2]
[365230598,1749558637325,-490.0,0.00016931,2]
[365230600,1749558637335,-490.0,0.00016931,2]
[365230602,1749558637345,-490.0,0.00016931,2]
[365230604,1749558637355,-490.0,0.00016931,2]
[365230606,1749558637365,-490.0,0.00016931,2]
[365230608,1749558637375,-506.1,0.00016931,2]
[365230610,1749558637384,-1331.84,0.00016939,2]
[365230612,1749558637393,-2500.0,0.00016995,2]
[365230614,1749558637403,-260.22308629,0.00017094,2]
[365230616,1749558637412,-178.22087506,0.00017094,2]
[365230618,1749558637421,-208.36275062,0.00017094,2]
[365230620,1749558637430,-229.71337186,0.00017094,2]
[365230622,1749558637440,-263.94358783,0.00017094,2]
[365230624,1749558637449,-1093.59,0.00017095,2]
[365230626,1749558637459,-490.0,0.00017095,2]
[365230628,1749558637469,-159.65,0.00017095,2]
[365230630,1749558637479,-440.0,0.00017095,2]
[365230632,1749558637488,-490.0,0.00017095,2]
[365230634,1749558637497,-490.0,0.00017095,2]
[365230636,1749558637507,-490.0,0.00017095,2]
[365230638,1749558637518,-558.73,0.00017095,2]
[365230640,1749558637528,-490.0,0.00017095,2]
[365230642,1749558637537,-490.0,0.00017095,2]
[365230644,1749558637547,-1157.58,0.00017095,2]
[365230646,1749558637557,-490.0,0.00017095,2]
[365230648,1749558637567,-490.0,0.00017095,2]
[365230650,1749558637578,-490.0,0.00017095,2]
[365230652,1749558637588,-490.0,0.00017095,2]
[365230654,1749558637599,-490.0,0.00017095,2]
[365230656,1749558637610,-1150.32,0.00017095,2]
[365230658,1749558637620,-490.0,0.00017095,2]
[365230660,1749558637630,-490.0,0.00017095,2]
[365230662,1749558637640,-490.0,0.00017095,2]
[365230664,1749558637650,-151.0,0.00017095,2]
[365230666,1749558637660,-151.0,0.00017095,2]
[365230668,1749558637669,-151.0,0.00017095,2]
[365230670,1749558637679,-151.0,0.00017095,2]
[365230672,1749558637688,-173.05703,0.00017095,2]
[365230674,1749558637698,-173.05703,0.00017095,2]
[365230676,1749558637707,-543.45654,0.00017095,2]
[365230678,1749558637716,-543.45654,0.00017095,2]
[365230680,1749558637726,-151.0,0.00017095,2]
[365230682,1749558637736,-151.0,0.00017095,2]
[365230684,1749558637745,-6947.255451,0.00017095,2]
[365230686,1749558637755,-6947.255451,0.00017095,2]
[365230688,1749558637764,-151.0,0.00017095,2]
[365230690,1749558637775,-151.0,0.00017095,2]
[365230692,1749558637785,-151.0,0.00017095,2]
[365230694,1749558637795,-231.780223,0.00017095,2]
[365230696,1749558637804,-151.0,0.00017095,2]
[365230698,1749558637814,-231.780223,0.00017095,2]
[365230700,1749558637824,-490.0,0.00017095,2]
[365230702,1749558637833,-151.0,0.00017095,2]
[365230705,1749558637844,-2282.25,0.00017095,2]
[365230707,1749558637854,-490.0,0.00017095,2]
[365230709,1749558637863,-151.0,0.00017095,2]
[365230711,1749558637873,-210.52,0.00017095,2]
[365230713,1749558637884,-151.0,0.00017095,2]
[365230715,1749558637894,-151.0,0.00017095,2]
[365230717,1749558637903,-490.0,0.00017095,2]
[365230719,1749558637912,-291.090056,0.00017095,2]
[365230721,1749558637922,-490.0,0.00017095,2]
[365230723,1749558637932,-151.0,0.00017095,2]
[365230725,1749558637941,-490.0,0.00017095,2]
[365230727,1749558637951,-362.0,0.00017189,4]
[365230734,1749558637960,-833.29909032,0.00017199,2]
[365230736,1749558638012,-1093.59,0.0001726,2]
[365230738,1749558638021,-524.13,0.0001726,2]
[365230740,1749558638031,-490.0,0.0001726,2]
[365230742,1749558638040,-490.0,0.0001726,2]
[365230744,1749558638050,-490.0,0.0001726,2]
[365230746,1749558638059,-558.73,0.0001726,2]
[365230748,1749558638068,-490.0,0.0001726,2]
[365230750,1749558638077,-490.0,0.0001726,2]
[365230752,1749558638086,-1157.58,0.0001726,2]
[365230754,1749558638096,-490.0,0.0001726,2]
[365230756,1749558638105,-299.46,0.0001726,2]
[365230758,1749558638115,-490.0,0.0001726,2]
[365230760,1749558638125,-490.0,0.0001726,2]
[365230761,1749558638134,-490.0,0.0001726,2]
[365230762,1749558638144,-1150.32,0.0001726,2]
[365230763,1749558638154,-490.0,0.0001726,2]
[365230764,1749558638164,-490.0,0.0001726,2]
[365230765,1749558638173,-490.0,0.0001726,2]
[365230766,1749558638183,-151.0,0.0001726,2]
[365230767,1749558638193,-151.0,0.0001726,2]
[365230768,1749558638203,-151.0,0.0001726,2]
[365230769,1749558638213,-151.0,0.0001726,2]
[365230771,1749558638222,-151.0,0.0001726,2]
[365230773,1749558638232,-151.0,0.0001726,2]
[365230775,1749558638242,-151.0,0.0001726,2]
[365230777,1749558638251,-151.0,0.0001726,2]
[365230779,1749558638261,-221.37175,0.0001726,2]
[365230781,1749558638271,-221.37175,0.0001726,2]
[365230783,1749558638281,-490.0,0.0001726,2]
[365230785,1749558638291,-2282.25,0.0001726,2]
[365230787,1749558638300,-490.0,0.0001726,2]
[365230789,1749558638310,-169.56,0.0001726,2]
[365230791,1749558638319,-296.03,0.0001726,2]
[365230793,1749558638329,-485.59935811,0.0001726,2]
[365230795,1749558638337,-1093.59,0.00017424,2]
[365230796,1749558638347,-490.0,0.00017424,2]
[365230798,1749558638356,-490.0,0.00017424,2]
[365230800,1749558638366,-490.0,0.00017424,2]
[365230802,1749558638375,-558.73,0.00017424,2]
[365230804,1749558638385,-490.0,0.00017424,2]
[365230806,1749558638395,-490.0,0.00017424,2]
[365230808,1749558638404,-1157.58,0.00017424,2]
[365230810,1749558638413,-490.0,0.00017424,2]
[365230812,1749558638422,-295.58,0.00017424,2]
[365230814,1749558638432,-490.0,0.00017424,2]
[365230816,1749558638443,-490.0,0.00017424,2]
[365230818,1749558638452,-1150.32,0.00017424,2]
[365230820,1749558638462,-490.0,0.00017424,2]
[365230822,1749558638471,-490.0,0.00017424,2]
[365230824,1749558638481,-490.0,0.00017424,2]
[365230826,1749558638490,-2282.25,0.00017424,2]
[365230828,1749558638499,-490.0,0.00017424,2]
[365230830,1749558638508,-1000.0,0.00017443,2]
[365230832,1749558638518,-152.0,0.00017469,3]
[365230834,1749558638527,-1093.59,0.00017589,2]
[365230836,1749558638537,-325.31,0.00017589,2]
[365230838,1749558638547,-199.42182678,0.00017589,2]
[365230840,1749558638556,-490.0,0.00017589,2]
[365230842,1749558638565,-558.73,0.00017589,2]
[365230844,1749558638573,-490.0,0.00017589,2]
[365230846,1749558638582,-490.0,0.00017589,2]
[365230848,1749558638595,-1157.58,0.00017589,2]
[365230850,1749558638604,-164.01006182,0.00017589,2]
[365230852,1749558638614,-490.0,0.00017589,2]
[365230854,1749558638623,-473.58,0.00017589,2]
[365230856,1749558638632,-1150.32,0.00017589,2]
[365230858,1749558638642,-490.0,0.00017589,2]
[365230860,1749558638651,-490.0,0.00017589,2]
[365230862,1749558638661,-151.0,0.00017589,2]
[365230864,1749558638670,-6947.255451,0.00017589,2]
[365230866,1749558638679,-6947.255451,0.00017589,2]
[365230868,1749558638689,-151.0,0.00017589,2]
[365230870,1749558638698,-151.0,0.00017589,2]
[365230872,1749558638707,-151.0,0.00017589,2]
[365230874,1749558638717,-231.780223,0.00017589,2]
[365230875,1749558638726,-152.910354,0.00017589,2]
[365230877,1749558638736,-231.780223,0.00017589,2]
[365230880,1749558638746,-490.0,0.00017589,2]
[365230881,1749558638755,-151.0,0.00017589,2]
[365230883,1749558638765,-2282.25,0.00017589,2]
[365230885,1749558638774,-490.0,0.00017589,2]
[365230887,1749558638784,-151.0,0.00017589,2]
[365230890,1749558638793,-151.0,0.00017589,2]
[365230893,1749558638803,-151.0,0.00017589,2]
[365230896,1749558638813,-151.0,0.00017589,2]
[365230897,1749558638822,-11245.88,0.0001759,2]
[365230900,1749558638832,-151.0,0.0001759,2]
[365230901,1749558638841,-151.0,0.0001759,2]
[365230904,1749558638851,-151.0,0.0001759,2]
[365230906,1749558638861,-151.0,0.0001759,2]
[365230908,1749558638871,-151.0,0.0001759,2]
[365230909,1749558638882,-151.0,0.0001759,2]
[365230911,1749558638891,-151.0,0.0001759,2]
[365230913,1749558638901,-173.05703,0.0001759,2]
[365230915,1749558638910,-151.0,0.0001759,2]
[365230918,1749558638921,-173.05703,0.0001759,2]
[365230920,1749558638930,-543.45654,0.0001759,2]
[365230922,1749558638940,-543.45654,0.0001759,2]
[365230924,1749558638949,-151.0,0.0001759,2]
[365230925,1749558638960,-221.37175,0.0001759,2]
[365230928,1749558638969,-221.37175,0.0001759,2]
[365230929,1749558638979,-362.0,0.0001764,4]
[365230931,1749558638988,-1000.0,0.00017744,2]
[365230933,1749558638997,-200.0,0.00017744,2]
[365230935,1749558639006,-1731.3,0.00017744,2]
[365230937,1749558639016,-332.05,0.00017744,2]
[365230939,1749558639025,-152.0,0.00017751,4]
[365230941,1749558639035,-1093.59,0.00017753,2]
[365230943,1749558639044,-490.0,0.00017753,2]
[365230945,1749558639053,-558.73,0.00017753,2]
[365230947,1749558639062,-490.0,0.00017753,2]
[365230949,1749558639071,-490.0,0.00017753,2]
[365230951,1749558639080,-1157.58,0.00017753,2]
[365230953,1749558639090,-490.0,0.00017753,2]
[365230955,1749558639099,-1150.32,0.00017753,2]
[365230957,1749558639108,-490.0,0.00017753,2]
[365230959,1749558639118,-198.61722698,0.00017753,2]
[365230961,1749558639127,-2282.25,0.00017753,2]
[365230963,1749558639137,-490.0,0.00017753,2]
[365230965,1749558639146,-151.0,0.00017753,2]
[365230967,1749558639156,-151.0,0.00017753,2]
[365230969,1749558639165,-151.0,0.00017753,2]
[365230971,1749558639174,-151.0,0.00017753,2]
[365230973,1749558639184,-1609.48656857,0.00017766,2]
[365230975,1749558639194,-200.0,0.00017773,2]
[365230977,1749558639203,-150.90358967,0.00017781,2]
[365230979,1749558639212,-1609.48656857,0.00017784,2]
[365230981,1749558639222,-1609.48656857,0.00017798,2]
[365230983,1749558639231,-11072.25,0.000178,2]
[365230985,1749558639241,-847.69,0.000178,2]
[365230987,1749558639254,-618.16,0.000178,2]
[365230989,1749558639264,-151.0,0.000178,2]
[365230991,1749558639275,-151.0,0.000178,2]
[365230994,1749558639285,-245.43,0.000178,2]
[365230996,1749558639295,-2038.17143865,0.000178,2]
[365230998,1749558639305,-2038.17143837,0.000178,2]
[365230999,1749558639315,-2038.17143837,0.000178,2]
[365231001,1749558639325,-2038.17143837,0.000178,2]
[365231003,1749558639335,-2038.17143837,0.000178,2]
[365231005,1749558639344,-2038.17143837,0.000178,2]
[365231007,1749558639354,-2038.17143837,0.000178,2]
[365231009,1749558639363,-2038.17143837,0.000178,2]
[365231011,1749558639372,-2038.17143837,0.000178,2]
[365231013,1749558639381,-500.0,0.00017808,2]
[365231015,1749558639391,-432.81143079,0.00017808,2]
[365231017,1749558639401,-500.0,0.00017808,2]
[365231019,1749558639410,-500.0,0.00017808,2]
[365231021,1749558639419,-500.0,0.00017808,2]
[365231023,1749558639429,-1609.48656857,0.0001781,2]
[365231025,1749558639440,-2038.17143837,0.00017831,2]
[365231027,1749558639449,-200.0,0.00017832,2]
[365231029,1749558639459,-1609.48656857,0.00017835,2]
[365231031,1749558639468,-250.0,0.00017841,2]
[365231034,1749558639478,-300.0,0.00017841,2]
[365231035,1749558639487,-600.0,0.00017841,4]
[365231037,1749558639497,-300.0,0.00017841,2]
[365231039,1749558639507,-1609.48656857,0.00017846,2]
[365231041,1749558639516,-631.78,0.00017886,2]
[365231043,1749558639526,-7112.04558373,0.00017899,2]
[365231045,1749558639535,-11072.25,0.000179,2]
[365231047,1749558639545,-847.69,0.000179,2]
[365231048,1749558639554,-847.69,0.000179,2]
[365231050,1749558639564,-618.16,0.000179,2]
[365231052,1749558639574,-151.0,0.000179,2]
[365231054,1749558639584,-194.093952,0.000179,2]
[365231056,1749558639594,-151.0,0.000179,2]
[365231058,1749558639604,-151.0,0.000179,2]
[365231060,1749558639613,-151.0,0.000179,2]
[365231062,1749558639623,-245.43,0.000179,2]
[365231064,1749558639632,-245.43,0.000179,2]
[365231066,1749558639643,-173.05703,0.000179,2]
[365231068,1749558639653,-151.0,0.000179,2]
[365231070,1749558639662,-173.05703,0.000179,2]
[365231072,1749558639671,-543.45654,0.000179,2]
[365231074,1749558639680,-543.45654,0.000179,2]
[365231076,1749558639689,-151.0,0.000179,2]
[365231078,1749558639699,-151.0,0.000179,2]
[365231080,1749558639709,-221.37175,0.000179,2]
[365231082,1749558639718,-221.37175,0.000179,2]
[365231084,1749558639727,-6947.255451,0.000179,2]
[365231086,1749558639736,-6947.255451,0.000179,2]
[365231088,1749558639746,-151.0,0.000179,2]
[365231090,1749558639755,-154.725886,0.000179,2]
[365231092,1749558639765,-151.0,0.000179,2]
[365231094,1749558639775,-231.780223,0.000179,2]
[365231096,1749558639785,-231.780223,0.000179,2]
[365231098,1749558639794,-151.0,0.000179,2]
[365231100,1749558639806,-151.0,0.000179,2]
[365231102,1749558639816,-151.0,0.000179,2]
[365231104,1749558639825,-1093.59,0.00017917,2]
[365231106,1749558639834,-348.04,0.00017917,2]
[365231108,1749558639844,-558.73,0.00017917,2]
[365231110,1749558639853,-490.0,0.00017917,2]
[365231112,1749558639863,-490.0,0.00017917,2]
[365231114,1749558639875,-1157.58,0.00017917,2]
[365231116,1749558639886,-168.21,0.00017917,2]
[365231118,1749558639895,-1150.32,0.00017917,2]
[365231120,1749558639904,-2282.25,0.00017917,2]
[365231121,1749558639913,-418.46521422,0.00017917,2]
[365231192,1749558640673,-480.0,0.00016438,2]
[365231194,1749558640683,-257.12000431,0.00016438,2]
[365231196,1749558640692,-480.0,0.00016438,2]
[365231198,1749558640701,-71.53478578,0.00017917,2]
[365231200,1749558640710,-2038.17143837,0.00017934,2]
[365231202,1749558640719,-420.0,0.00017963,2]
[365231204,1749558640728,-1232.59249348,0.0001799,2]
[365231206,1749558640739,-1437.50500002,0.0001799,2]
[365231208,1749558640750,-8560.00000291,0.0001799,2]
[365231210,1749558640761,-692.68525,0.0001799,2]
[365231212,1749558640771,-577.475,0.0001799,2]
[365231215,1749558640787,-2080.01933364,0.0001799,2]
[365231226,1749558640885,-490.0,0.00016438,2]
[365231228,1749558640895,-632.68,0.00016602,2]
[365231230,1749558640905,-12701.98600004,0.0001799,2]
[365231232,1749558640917,-4289.33376516,0.0001799,2]
[365231234,1749558640928,-1095.1,0.0001799,2]
[365231237,1749558640945,-29482.88033457,0.0001799,2]
[365231239,1749558640955,-233.50872,0.0001799,2]
[365231241,1749558640967,-151.0,0.0001799,2]
[365231243,1749558640976,-1500.0,0.00017991,2]
[365231245,1749558640985,-300.0,0.00017999,2]
[365231247,1749558640995,-847.69,0.00018,2]
[365231249,1749558641005,-245.43,0.00018,2]
[365231251,1749558641014,-245.43,0.00018,2]
[365231253,1749558641025,-2747.70869564,0.00018,2]
[365231255,1749558641034,-1414.29876664,0.00018,2]
[365231257,1749558641044,-140888.58233428,0.00018,2]
[365231258,1749558641054,-1154.7711546,0.00018,2]
[365231261,1749558641065,-151.0,0.00018,2]
[365231263,1749558641074,-152.0,0.00018034,5]